[Event "WSTCC-65 2020"]
[Site "Prague"]
[Date "2020.03.08"]
[Round "3.1"]
[White "Ackermann, Hans Werner"]
[Black "Birnboim, Nathan"]
[Result "0-1"]
[ECO "B08"]
[WhiteElo "2242"]
[BlackElo "2369"]
[Annotator "RC"]
[PlyCount "118"]
[EventDate "2020.03.06"]
[EventType "team-tourn"]
[EventCountry "CZE"]
[SourceTitle "playchess.com"]
[Source "ChessBase"]
[SourceQuality "1"]
[TimeControl "40/5400+30:1800+30"]

1. Nf3 {[%emt 0:00:00]} g6 {[%emt 0:00:00]} 2. e4 {[%emt 0:01:12]} Bg7 {[%emt 0:00:21]} 3. d4 {[%emt 0:00:33]} d6 {[%emt 0:00:59]} 4. Nc3 {[%emt 0:06:51]} Nf6 {[%emt 0:00:04]} 5. Be3 {[%emt 0:02:28]} O-O {[%emt 0:00:28]} 6. Qd2 {[%emt 0:04:11]} Bg4 {[%emt 0:21:52]} 7. Be2 {[%emt 0:07:36]} e5 {[%emt 0:04:08]} 8. dxe5 {[%emt 0:25:57]} dxe5 {[%emt 0:00:06]} 9. Qxd8 {[%emt 0:14:11]} Rxd8 {[%emt 0:00:05]} 10. Bg5 {[%emt 0:01:18]} Nbd7 {[%emt 0:02:54]} 11. Nd2 {[%emt 0:05:46]} Bxe2 {[%emt 0:05:18]} 12. Nxe2 {[%emt 0:04:11]} Nc5 {[%emt 0:01:29]} 13. f3 {[%emt 0:00:19]} Ne6 {[%emt 0:00:52]} 14. Be3 {[%emt 0:01:52]} Nd7 {[%emt 0:02:35]} 15. Nb3 {[%emt 0:04:14]} Bf8 {[%emt 0:24:33]} 16. O-O-O {[%emt 0:02:35]} Nb6 {[%emt 0:02:20]} 17. Bxb6 {[%emt 0:03:35]} axb6 {[%emt 0:00:43]} 18. Rxd8 {[%emt 0:00:43]} Rxd8 {[%emt 0:00:13]} 19. c3 {[%emt 0:00:13]} h5 {[%emt 0:04:22]} 20. Kc2 Bh6 21. Rd1 {[%emt 0:05:28]} Rxd1 {[%emt 0:00:36]} 22. Kxd1 {[%emt 0:00:18]} h4 {[%emt 0:00:34]} 23. h3 {[%emt 0:00:29]} f5 {[%emt 0:00:51]} 24. Kc2 {[%emt 0:01:28]} Kf7 {[%emt 0:00:39]} 25. Kd3 {[%emt 0:01:16]} Ke7 {[%emt 0:01:15]} 26. a4 {[%emt 0:02:08]} Kd6 {[%emt 0:00:25]} 27. Kc4 {[%emt 0:00:32]} c6 {[%emt 0:03:20]} 28. Kd3 {[%emt 0:01:17]} Ke7 {[%emt 0:00:31]} 29. Kc4 {[%emt 0:00:29]} Kf6 {[%emt 0:00:15]} 30. Kd3 {[%emt 0:01:01]} Bf8 {[%emt 0:00:33]} 31. Ke3 {[%emt 0:00:35]} Bc5+ {[%emt 0:01:02]} 32. Kd3 {[%emt 0:00:08]} Bf2 {[%emt 0:00:16]} 33. exf5 {[%emt 0:01:25]} gxf5 {[%emt 0:00:29]} 34. a5 {[%emt 0:00:10]} Kg5 {[%emt 0:00:59]} 35. axb6 {[%emt 0:00:24]} Bxb6 {[%emt 0:00:09]} 36. Nd2 {[%emt 0:00:07]} Nf4+ {[%emt 0:02:14]} 37. Nxf4 {[%emt 0:00:14]} Kxf4 {[%emt 0:00:04]} 38. Nf1 {[%emt 0:00:31]} e4+ {[%emt 0:02:37]} 39. fxe4 {[%emt 0:00:11]} fxe4+ {[%emt 0:00:08]} 40. Ke2 {[%emt 0:00:16]} Bd8 {[%emt 0:00:33]} 41. Kf2 {[%emt 0:00:25]} b5 {[%emt 0:01:17]} 42. Ke2 {[%emt 0:00:17]} Bg5 {[%emt 0:01:19]} 43. b3 {[%emt 0:04:01]} Bf6 {[%emt 0:01:23]} 44. Kd2 {[%emt 0:01:58]} Bd8 {[%emt 0:01:31]} 45. Kc2 {[%emt 0:00:20]} Ke5 {[%emt 0:00:54]} 46. Kd1 {[%emt 0:02:23]} Bg5 {[%emt 0:00:22]} 47. g3 {[%emt 0:02:01]} hxg3 {[%emt 0:04:46]} 48. Nxg3 {[%emt 0:00:04]} Kf4 {[%emt 0:00:12]} 49. Ne2+ {[%emt 0:00:05]} Kf3 {[%emt 0:00:09]} 50. Nd4+ {[%emt 0:11:52]} Kf2 {[%emt 0:00:06]} 51. c4 {[%emt 0:00:15]} Bf6 {[%emt 0:06:10]} 52. Ne6 {[%emt 0:07:51]} b4 {[%emt 0:02:49]} 53. Nc5 {[%emt 0:02:42]} Ke3 {[%emt 0:01:00]} 54. Kc2 {[%emt 0:02:23]} Kf3 {[%emt 0:01:33]} 55. Kd1 {[%emt 0:02:41]} e3 {[%emt 0:01:13]} 56. Nd3 {[%emt 0:00:13]} e2+ {[%emt 0:00:44]} 57. Kc2 {[%emt 0:00:06]} Bc3 {[%emt 0:00:16]} 58. h4 {[%emt 0:00:30]} Kg4 {[%emt 0:00:59]} 59. h5 {[%emt 0:00:54]} Kg5 {[%emt 0:00:37]} 0-1

[Event "WSTCC-65 2020"]
[Site "Prague"]
[Date "2020.03.08"]
[Round "3.40"]
[White "Schrickx, Frank"]
[Black "Nespor, Ivan"]
[Result "1-0"]
[ECO "B07"]
[WhiteElo "1826"]
[BlackElo "1707"]
[Annotator "NA RC"]
[PlyCount "69"]
[EventDate "2020.03.06"]
[EventType "team-tourn"]
[EventCountry "CZE"]
[SourceTitle "playchess.com"]
[Source "ChessBase"]
[SourceQuality "1"]
[TimeControl "40/5400+30:1800+30"]

1. e4 {[%emt 0:00:00]} d6 {[%emt 0:00:00]} 2. d4 {[%emt 0:00:00]} Nf6 {[%emt 0:00:01]} 3. Nc3 {[%emt 0:00:06]} g6 {[%emt 0:00:59]} 4. Be2 {[%emt 0:01:01]} Bg7 {[%emt 0:00:13]} 5. f4 {[%emt 0:00:44]} O-O {[%emt 0:00:59]} 6. Bf3 {[%emt 0:02:09]} c6 {[%emt 0:02:58]} 7. Nge2 {[%emt 0:01:34]} a5 {[%emt 0:07:19]} 8. Be3 {[%emt 0:08:22]} Ng4 {[%emt 0:01:50]} 9. Bg1 {[%emt 0:05:22]} f5 {[%emt 0:03:28]} 10. h3 {[%emt 0:03:51]} Nh6 {[%emt 0:03:21]} 11. e5 {[%emt 0:01:24]} d5 {[%emt 0:01:45]} 12. Na4 {[%emt 0:06:16]} b5 {[%emt 0:01:07]} 13. Nc5 {[%emt 0:00:24]} Na6 {[%emt 0:00:14]} 14. c3 {[%emt 0:02:48]} e6 {[%emt 0:01:47]} 15. Bf2 {[%emt 0:01:39]} Rf7 {[%emt 0:11:07]} 16. O-O {[%emt 0:04:57]} Bf8 {[%emt 0:02:49]} 17. Nxa6 {[%emt 0:06:38]} Bxa6 {[%emt 0:01:27]} 18. Kh1 {[%emt 0:01:54]} Rb7 {[%emt 0:01:19]} 19. Qc2 {[%emt 0:03:58]} Rc8 {[%emt 0:01:23]} 20. Rfc1 {[%emt 0:01:10]} Rg7 {[%emt 0:07:06]} 21. Rg1 {[%emt 0:09:04]} Qb6 {[%emt 0:03:10]} 22. a3 {[%emt 0:01:53]} c5 {[%emt 0:03:26]} 23. dxc5 {[%emt 0:00:47]} Bxc5 {[%emt 0:00:08]} 24. Bxc5 {[%emt 0:02:17]} Qxc5 {[%emt 0:01:50]} 25. Qd2 {[%emt 0:00:46]} a4 26. Nd4 Re7 {[%emt 0:01:01]} 27. Be2 {[%emt 0:02:44]} Kh8 {[%emt 0:01:20]} 28. Rae1 {[%emt 0:02:52]} Rb8 {[%emt 0:03:12]} 29. Bd3 {[%emt 0:00:34]} Bc8 {[%emt 0:00:18]} 30. Qe2 {[%emt 0:01:00]} Bd7 {[%emt 0:00:25]} 31. Qf2 {[%emt 0:01:41]} Rg8 {[%emt 0:02:39]} 32. Qh4 {[%emt 0:01:12]} Nf7 {[%emt 0:01:38]} 33. g4 {[%emt 0:00:37]} g5 {[%emt 0:00:38]} 34. fxg5 {[%emt 0:03:27]} Rxg5 {[%emt 0:01:04]} 35. gxf5 {[%emt 0:00:54]} 1-0

[Event "WSTCC-65 2020"]
[Site "Prague"]
[Date "2020.03.09"]
[Round "4.4"]
[White "Buchal, Stephan"]
[Black "Mozny, Milos"]
[Result "1/2-1/2"]
[ECO "A20"]
[WhiteElo "2276"]
[BlackElo "2261"]
[Annotator "ChessBase"]
[PlyCount "48"]
[EventDate "2020.03.06"]
[EventType "team-tourn"]
[EventCountry "CZE"]
[SourceTitle "playchess.com"]
[Source "ChessBase"]
[SourceQuality "1"]
[TimeControl "40/5400+30:1800+30"]

1. c4 {[%emt 0:00:00]} e5 {[%emt 0:00:00]} 2. g3 {[%emt 0:00:00]} Nf6 {[%emt 0:00:07]} 3. Bg2 {[%emt 0:00:13]} d5 {[%emt 0:00:41]} 4. cxd5 {[%emt 0:00:09]} Nxd5 {[%emt 0:00:06]} 5. Nf3 {[%emt 0:00:26]} Nc6 {[%emt 0:01:18]} 6. O-O {[%emt 0:02:51]} Be7 {[%emt 0:00:32]} 7. d4 {[%emt 0:01:10]} exd4 {[%emt 0:05:31]} 8. Nxd4 {[%emt 0:01:09]} Nxd4 {[%emt 0:00:17]} 9. Qxd4 {[%emt 0:00:05]} Nf6 {[%emt 0:00:21]} 10. Qa4+ {[%emt 0:02:39]} c6 {[%emt 0:02:03]} 11. Rd1 {[%emt 0:01:25]} Qb6 {[%emt 0:01:20]} 12. Be3 {[%emt 0:03:13]} Bc5 {[%emt 0:03:43]} 13. Bxc5 {[%emt 0:00:52]} Qxc5 {[%emt 0:00:06]} 14. b4 {[%emt 0:04:06]} Qb6 {[%emt 0:09:32]} 15. Nc3 {[%emt 0:01:58]} O-O {[%emt 0:06:45]} 16. b5 {[%emt 0:02:00]} Bd7 {[%emt 0:08:18]} 17. bxc6 {[%emt 0:04:57]} Bxc6 {[%emt 0:00:30]} 18. Bxc6 {[%emt 0:00:14]} Qxc6 {[%emt 0:01:08]} 19. Qxc6 {[%emt 0:01:49]} bxc6 {[%emt 0:00:07]} 20. Rd6 {[%emt 0:05:36]} Rac8 {[%emt 0:04:37]} 21. Rb1 {[%emt 0:10:39]} Rc7 {[%emt 0:00:20]} 22. e4 {[%emt 0:03:37]} Nd7 {[%emt 0:11:48]} 23. f4 {[%emt 0:06:47]} f6 {[%emt 0:00:14]} 24. Kf2 {[%emt 0:26:18]} Kf7 {[%emt 0:00:49]} 1/2-1/2

[Event "WSTCC-65 2020"]
[Site "Prague"]
[Date "2020.03.09"]
[Round "4.10"]
[White "Brock, Friedemann"]
[Black "Maryasin, Boris"]
[Result "1/2-1/2"]
[ECO "D37"]
[WhiteElo "2230"]
[BlackElo "2305"]
[Annotator "ChessBase"]
[PlyCount "58"]
[EventDate "2020.03.06"]
[EventType "team-tourn"]
[EventCountry "CZE"]
[SourceTitle "playchess.com"]
[Source "ChessBase"]
[SourceQuality "1"]
[TimeControl "40/5400+30:1800+30"]

1. d4 {[%emt 0:00:00]} Nf6 {[%emt 0:00:00]} 2. c4 {[%emt 0:00:00]} e6 {[%emt 0:00:10]} 3. Nf3 {[%emt 0:00:00]} d5 {[%emt 0:00:18]} 4. Nc3 {[%emt 0:00:00]} dxc4 {[%emt 0:00:23]} 5. e4 {[%emt 0:00:16]} b5 {[%emt 0:00:40]} 6. e5 {[%emt 0:01:05]} Nd5 {[%emt 0:00:14]} 7. Nxb5 {[%emt 0:00:30]} Nb6 {[%emt 0:00:10]} 8. Be2 {[%emt 0:05:02]} Be7 {[%emt 0:00:52]} 9. O-O {[%emt 0:00:15]} O-O {[%emt 0:00:24]} 10. Be3 {[%emt 0:00:27]} Nc6 {[%emt 0:01:51]} 11. Rc1 {[%emt 0:14:47]} Ba6 {[%emt 0:01:17]} 12. Nc3 {[%emt 0:00:37]} Nb4 {[%emt 0:01:31]} 13. Ne1 {[%emt 0:01:04]} Rb8 {[%emt 0:05:20]} 14. a3 {[%emt 0:03:56]} N4d5 {[%emt 0:00:32]} 15. Ne4 {[%emt 0:02:41]} Nxe3 {[%emt 0:05:41]} 16. fxe3 {[%emt 0:00:06]} Nd5 {[%emt 0:00:37]} 17. Qd2 {[%emt 0:00:11]} Rb3 {[%emt 0:01:22]} 18. Rf3 {[%emt 0:07:05]} Bg5 {[%emt 0:03:22]} 19. Nxg5 {[%emt 0:02:53]} Qxg5 {[%emt 0:00:28]} 20. Bxc4 {[%emt 0:04:49]} Bxc4 {[%emt 0:00:29]} 21. Rxc4 {[%emt 0:02:46]} Rfb8 {[%emt 0:00:48]} 22. Nd3 {[%emt 0:08:19]} h5 {[%emt 0:14:29]} 23. Rc2 {[%emt 0:09:42]} c5 {[%emt 0:10:06]} 24. Nxc5 {[%emt 0:14:04]} Rxe3 {[%emt 0:00:29]} 25. Rxe3 {[%emt 0:01:40]} Qxe3+ {[%emt 0:00:46]} 26. Qxe3 {[%emt 0:00:10]} Nxe3 {[%emt 0:00:05]} 27. Re2 {[%emt 0:01:07]} Nc4 {[%emt 0:00:21]} 28. Nd3 {[%emt 0:04:27]} Rd8 {[%emt 0:04:35]} 29. Re4 {[%emt 0:00:05]} Rb8 {[%emt 0:00:08]} 1/2-1/2

[Event "WSTCC-65 2020"]
[Site "Prague"]
[Date "2020.03.09"]
[Round "4.11"]
[White "Shevelev, Arkady"]
[Black "Schoeneberg, Manfred"]
[Result "1/2-1/2"]
[ECO "B83"]
[WhiteElo "2278"]
[BlackElo "2144"]
[Annotator "ChessBase"]
[PlyCount "80"]
[EventDate "2020.03.06"]
[EventType "team-tourn"]
[EventCountry "CZE"]
[SourceTitle "playchess.com"]
[Source "ChessBase"]
[SourceQuality "1"]
[TimeControl "40/5400+30:1800+30"]

1. e4 {[%emt 0:00:00]} c5 {[%emt 0:00:00]} 2. Nf3 {[%emt 0:00:09]} e6 {[%emt 0:00:38]} 3. d4 {[%emt 0:00:17]} cxd4 {[%emt 0:00:07]} 4. Nxd4 {[%emt 0:00:13]} Nf6 {[%emt 0:00:17]} 5. Nc3 {[%emt 0:00:10]} d6 {[%emt 0:00:11]} 6. Be2 {[%emt 0:00:35]} Be7 {[%emt 0:00:25]} 7. O-O {[%emt 0:00:19]} O-O {[%emt 0:00:08]} 8. Be3 {[%emt 0:00:06]} a6 {[%emt 0:01:12]} 9. a4 {[%emt 0:00:15]} Nc6 {[%emt 0:03:19]} 10. Nb3 {[%emt 0:00:17]} b6 {[%emt 0:11:04]} 11. f4 {[%emt 0:00:13]} Bb7 {[%emt 0:01:13]} 12. Bf3 {[%emt 0:00:12]} Qc7 {[%emt 0:01:45]} 13. Qe2 {[%emt 0:00:35]} Nd7 {[%emt 0:04:14]} 14. Qf2 {[%emt 0:02:12]} Rac8 {[%emt 0:08:03]} 15. Rad1 {[%emt 0:07:06]} Nc5 16. Nd4 {[%emt 0:21:46]} Nxd4 {[%emt 0:08:47]} 17. Bxd4 {[%emt 0:00:36]} e5 {[%emt 0:12:12]} 18. Be3 {[%emt 0:00:53]} exf4 {[%emt 0:10:45]} 19. Bxf4 {[%emt 0:00:16]} Rcd8 {[%emt 0:07:26]} 20. Qg3 {[%emt 0:08:30]} Ne6 {[%emt 0:04:32]} 21. Be3 {[%emt 0:00:14]} Bf6 {[%emt 0:01:27]} 22. Nd5 {[%emt 0:02:06]} Bxd5 {[%emt 0:00:33]} 23. exd5 {[%emt 0:00:13]} Be5 {[%emt 0:02:40]} 24. Qf2 {[%emt 0:02:01]} Nc5 {[%emt 0:00:35]} 25. b3 {[%emt 0:00:17]} f5 {[%emt 0:01:52]} 26. Kh1 {[%emt 0:05:18]} Qe7 {[%emt 0:04:07]} 27. Qd2 {[%emt 0:02:53]} h6 {[%emt 0:02:50]} 28. Bg1 {[%emt 0:04:12]} Qh4 {[%emt 0:03:07]} 29. Qe1 {[%emt 0:01:51]} Qxe1 {[%emt 0:00:36]} 30. Rdxe1 {[%emt 0:00:31]} a5 {[%emt 0:01:03]} 31. g4 {[%emt 0:01:52]} fxg4 {[%emt 0:01:23]} 32. Bxg4 {[%emt 0:00:41]} Rxf1 {[%emt 0:00:57]} 33. Rxf1 {[%emt 0:00:12]} Rf8 {[%emt 0:00:16]} 34. Rxf8+ {[%emt 0:02:30]} Kxf8 {[%emt 0:00:04]} 35. Kg2 {[%emt 0:00:53]} Ke7 {[%emt 0:00:48]} 36. Bf3 {[%emt 0:03:35]} Kf6 {[%emt 0:01:06]} 37. Bf2 {[%emt 0:00:45]} Kf5 {[%emt 0:03:03]} 38. h3 {[%emt 0:00:55]} g5 {[%emt 0:00:35]} 39. Bg4+ {[%emt 0:03:11]} Ke4 {[%emt 0:01:07]} 40. Bf3+ {[%emt 0:00:00]} Kf5 {[%emt 0:00:00]} 1/2-1/2

[Event "WSTCC-65 2020"]
[Site "Prague"]
[Date "2020.03.09"]
[Round "4.12"]
[White "Heinsohn, Guenther"]
[Black "Afek, Yochanan"]
[Result "1-0"]
[ECO "B23"]
[WhiteElo "2157"]
[BlackElo "2212"]
[Annotator "ChessBase"]
[PlyCount "77"]
[EventDate "2020.03.06"]
[EventType "team-tourn"]
[EventCountry "CZE"]
[SourceTitle "playchess.com"]
[Source "ChessBase"]
[SourceQuality "1"]
[TimeControl "40/5400+30:1800+30"]

1. e4 {[%emt 0:00:00]} c5 {[%emt 0:00:00]} 2. Nc3 {[%emt 0:00:46]} g6 {[%emt 0:00:49]} 3. d4 {[%emt 0:01:03]} cxd4 {[%emt 0:01:33]} 4. Qxd4 {[%emt 0:00:12]} Nf6 {[%emt 0:00:17]} 5. Nf3 {[%emt 0:01:24]} Nc6 {[%emt 0:06:27]} 6. Qa4 {[%emt 0:01:00]} d6 {[%emt 0:02:21]} 7. e5 {[%emt 0:02:03]} dxe5 {[%emt 0:01:38]} 8. Nxe5 {[%emt 0:00:43]} Qd4 {[%emt 0:00:17]} 9. Nxc6 {[%emt 0:02:40]} Qxa4 {[%emt 0:00:12]} 10. Nxa4 {[%emt 0:00:11]} bxc6 {[%emt 0:00:48]} 11. b3 {[%emt 0:14:18]} Bf5 {[%emt 0:02:49]} 12. Ba6 {[%emt 0:01:17]} Bg7 {[%emt 0:05:38]} 13. Bb7 {[%emt 0:04:11]} Rd8 {[%emt 0:01:48]} 14. Bxc6+ {[%emt 0:03:37]} Kf8 {[%emt 0:01:47]} 15. Bb2 {[%emt 0:05:58]} Rc8 {[%emt 0:06:25]} 16. Bf3 {[%emt 0:01:30]} Rxc2 {[%emt 0:00:10]} 17. Rc1 {[%emt 0:08:41]} Rxc1+ {[%emt 0:05:01]} 18. Bxc1 {[%emt 0:00:28]} Ng4 {[%emt 0:07:31]} 19. Bxg4 {[%emt 0:04:03]} Bxg4 {[%emt 0:00:07]} 20. Be3 {[%emt 0:00:21]} a6 {[%emt 0:05:14]} 21. f3 {[%emt 0:01:50]} Bd7 {[%emt 0:02:05]} 22. Nc5 {[%emt 0:03:06]} Bc8 {[%emt 0:00:07]} 23. Kf2 {[%emt 0:00:24]} e5 {[%emt 0:03:44]} 24. Ne4 {[%emt 0:02:28]} f5 {[%emt 0:04:32]} 25. Rc1 {[%emt 0:00:57]} Bd7 {[%emt 0:04:33]} 26. Rc7 {[%emt 0:03:32]} Ke8 {[%emt 0:00:38]} 27. Nc5 {[%emt 0:02:33]} f4 {[%emt 0:00:25]} 28. Nxd7 {[%emt 0:09:53]} fxe3+ {[%emt 0:00:59]} 29. Kxe3 {[%emt 0:00:09]} Kd8 {[%emt 0:08:12]} 30. Ra7 {[%emt 0:00:47]} Re8 {[%emt 0:00:45]} 31. Nc5 {[%emt 0:01:38]} Bf8 {[%emt 0:03:40]} 32. Ra8+ {[%emt 0:00:57]} Ke7 {[%emt 0:00:04]} 33. Rxe8+ Kxe8 34. Nxa6 {[%emt 0:00:59]} Kd7 {[%emt 0:00:38]} 35. b4 {[%emt 0:02:30]} Kc6 {[%emt 0:00:15]} 36. a3 {[%emt 0:01:01]} Kd5 {[%emt 0:09:16]} 37. Kd3 {[%emt 0:01:48]} g5 {[%emt 0:00:45]} 38. g4 {[%emt 0:00:44]} Bd6 {[%emt 0:01:04]} 39. Nc5 {[%emt 0:00:36]} 1-0

[Event "WSTCC-65 2020"]
[Site "Prague"]
[Date "2020.03.09"]
[Round "4.16"]
[White "Dory, Jeno"]
[Black "Vesely, Emanuel"]
[Result "1/2-1/2"]
[ECO "B40"]
[WhiteElo "2170"]
[BlackElo "1779"]
[Annotator "ChessBase"]
[PlyCount "43"]
[EventDate "2020.03.06"]
[EventType "team-tourn"]
[EventCountry "CZE"]
[SourceTitle "playchess.com"]
[Source "ChessBase"]
[SourceQuality "1"]
[TimeControl "40/5400+30:1800+30"]

1. e4 {[%emt 0:00:00]} c5 {[%emt 0:00:00]} 2. Nf3 {[%emt 0:00:05]} e6 {[%emt 0:00:01]} 3. c3 {[%emt 0:00:45]} Nf6 {[%emt 0:01:20]} 4. e5 {[%emt 0:00:39]} Nd5 {[%emt 0:00:13]} 5. d4 {[%emt 0:01:26]} cxd4 {[%emt 0:01:20]} 6. cxd4 {[%emt 0:00:09]} Nc6 {[%emt 0:03:28]} 7. Bc4 {[%emt 0:01:40]} Nb6 {[%emt 0:00:06]} 8. Bb3 {[%emt 0:03:03]} d6 {[%emt 0:03:33]} 9. Bg5 {[%emt 0:07:48]} Be7 {[%emt 0:06:58]} 10. Bxe7 {[%emt 0:00:15]} Qxe7 {[%emt 0:03:13]} 11. Nc3 {[%emt 0:00:40]} O-O {[%emt 0:08:19]} 12. O-O {[%emt 0:00:54]} dxe5 {[%emt 0:08:37]} 13. dxe5 {[%emt 0:00:22]} Rd8 {[%emt 0:01:18]} 14. Qe2 {[%emt 0:01:38]} Bd7 {[%emt 0:15:33]} 15. a3 {[%emt 0:15:14]} Be8 {[%emt 0:10:13]} 16. Rad1 {[%emt 0:07:25]} Rxd1 {[%emt 0:05:25]} 17. Rxd1 {[%emt 0:00:09]} Rd8 {[%emt 0:00:15]} 18. Re1 {[%emt 0:02:47]} Nd4 {[%emt 0:01:47]} 19. Nxd4 {[%emt 0:00:20]} Rxd4 {[%emt 0:00:06]} 20. Ne4 {[%emt 0:05:22]} Bc6 {[%emt 0:02:35]} 21. Ng3 {[%emt 0:07:04]} Qd8 {[%emt 0:04:04]} 22. Nf1 {[%emt 0:03:40]} 1/2-1/2

[Event "WSTCC-65 2020"]
[Site "Prague"]
[Date "2020.03.09"]
[Round "4.17"]
[White "Holst, Per"]
[Black "Boidman, Yuri"]
[Result "0-1"]
[ECO "A41"]
[WhiteElo "2152"]
[BlackElo "2335"]
[Annotator "ChessBase"]
[PlyCount "104"]
[EventDate "2020.03.06"]
[EventType "team-tourn"]
[EventCountry "CZE"]
[SourceTitle "playchess.com"]
[Source "ChessBase"]
[SourceQuality "1"]
[TimeControl "40/5400+30:1800+30"]

1. d4 {[%emt 0:00:00]} d6 {[%emt 0:00:29]} 2. c4 {[%emt 0:00:00]} e5 {[%emt 0:00:09]} 3. Nf3 {[%emt 0:00:42]} e4 {[%emt 0:01:28]} 4. Ng5 {[%emt 0:00:09]} Nf6 {[%emt 0:00:12]} 5. g3 {[%emt 0:03:55]} h6 {[%emt 0:00:32]} 6. Nh3 {[%emt 0:00:02]} Bf5 {[%emt 0:01:23]} 7. f4 {[%emt 0:11:00]} c6 {[%emt 0:04:13]} 8. Nf2 {[%emt 0:02:06]} d5 {[%emt 0:00:52]} 9. e3 {[%emt 0:00:12]} g5 {[%emt 0:05:28]} 10. Nc3 {[%emt 0:12:57]} gxf4 {[%emt 0:03:28]} 11. exf4 {[%emt 0:02:30]} h5 {[%emt 0:01:50]} 12. Be2 {[%emt 0:03:40]} Be7 {[%emt 0:05:25]} 13. Be3 {[%emt 0:03:08]} Nbd7 {[%emt 0:07:09]} 14. Qb3 {[%emt 0:01:08]} Qb6 {[%emt 0:01:49]} 15. c5 {[%emt 0:01:29]} Qc7 {[%emt 0:01:01]} 16. O-O-O {[%emt 0:02:31]} b6 {[%emt 0:00:48]} 17. cxb6 {[%emt 0:01:06]} axb6 {[%emt 0:01:31]} 18. h3 {[%emt 0:01:19]} Nf8 {[%emt 0:03:21]} 19. g4 {[%emt 0:04:12]} Bc8 {[%emt 0:00:08]} 20. Rdg1 {[%emt 0:00:47]} Bd6 {[%emt 0:02:29]} 21. f5 {[%emt 0:03:35]} Bf4 {[%emt 0:00:34]} 22. Nfd1 {[%emt 0:02:55]} hxg4 {[%emt 0:02:40]} 23. hxg4 {[%emt 0:00:54]} Rxh1 {[%emt 0:00:22]} 24. Rxh1 {[%emt 0:00:09]} Bxe3+ {[%emt 0:12:56]} 25. Nxe3 {[%emt 0:00:44]} Qf4 {[%emt 0:00:09]} 26. Ncd1 {[%emt 0:00:12]} b5 {[%emt 0:07:32]} 27. Kb1 {[%emt 0:02:49]} N8h7 {[%emt 0:04:39]} 28. Qb4 {[%emt 0:04:06]} Kd7 {[%emt 0:02:57]} 29. Qe1 {[%emt 0:07:03]} Ra4 {[%emt 0:03:23]} 30. Ng2 {[%emt 0:01:42]} Qd6 {[%emt 0:00:47]} 31. Qc3 {[%emt 0:01:39]} Qb4 {[%emt 0:02:27]} 32. Rh6 {[%emt 0:00:51]} Qxc3 33. bxc3 {[%emt 0:00:29]} Ke7 {[%emt 0:04:01]} 34. Nde3 {[%emt 0:01:26]} b4 {[%emt 0:03:26]} 35. Bd1 {[%emt 0:10:43]} Ra3 {[%emt 0:00:08]} 36. Bb3 {[%emt 0:00:12]} bxc3 {[%emt 0:00:47]} 37. Kc2 {[%emt 0:00:20]} Ng5 {[%emt 0:00:50]} 38. Kxc3 {[%emt 0:00:50]} Nf3 {[%emt 0:02:50]} 39. Nf4 {[%emt 0:00:54]} Bb7 {[%emt 0:01:51]} 40. Nh3 {[%emt 0:00:00]} c5 {[%emt 0:00:00]} 41. Kb2 {[%emt 0:06:22]} Rxb3+ {[%emt 0:01:55]} 42. axb3 {[%emt 0:00:54]} cxd4 {[%emt 0:00:09]} 43. Nd1 {[%emt 0:00:18]} Nxg4 {[%emt 0:02:08]} 44. Rb6 {[%emt 0:01:39]} Bc8 {[%emt 0:00:03]} 45. Nf4 {[%emt 0:00:59]} Bxf5 {[%emt 0:00:33]} 46. Nxd5+ {[%emt 0:00:41]} Kf8 {[%emt 0:00:27]} 47. Rb8+ {[%emt 0:02:35]} Kg7 {[%emt 0:00:19]} 48. Re8 {[%emt 0:01:24]} Nf6 {[%emt 0:02:05]} 49. Nxf6 {[%emt 0:01:57]} Kxf6 {[%emt 0:00:01]} 50. b4 {[%emt 0:00:20]} Ne5 {[%emt 0:00:59]} 51. b5 {[%emt 0:01:55]} e3 {[%emt 0:00:29]} 52. Kc1 {[%emt 0:00:19]} Bd7 {[%emt 0:04:46]} 0-1

[Event "WSTCC-65 2020"]
[Site "Prague"]
[Date "2020.03.09"]
[Round "4.18"]
[White "Khanukov, Boris"]
[Black "Christiansen, Jens Jorgen"]
[Result "1-0"]
[ECO "D45"]
[WhiteElo "2293"]
[BlackElo "2042"]
[Annotator "ChessBase"]
[PlyCount "76"]
[EventDate "2020.03.06"]
[EventType "team-tourn"]
[EventCountry "CZE"]
[SourceTitle "playchess.com"]
[Source "ChessBase"]
[SourceQuality "1"]
[TimeControl "40/5400+30:1800+30"]

1. d4 {[%emt 0:00:00]} d5 {[%emt 0:00:00]} 2. c4 {[%emt 0:00:00]} c6 {[%emt 0:00:00]} 3. Nf3 {[%emt 0:00:10]} Nf6 {[%emt 0:00:00]} 4. Nc3 {[%emt 0:01:02]} a6 {[%emt 0:00:18]} 5. e3 {[%emt 0:00:33]} e6 {[%emt 0:01:40]} 6. Be2 {[%emt 0:03:05]} Nbd7 {[%emt 0:01:27]} 7. O-O {[%emt 0:00:40]} dxc4 {[%emt 0:04:01]} 8. Bxc4 {[%emt 0:00:26]} b5 {[%emt 0:00:08]} 9. Be2 {[%emt 0:04:29]} Bb7 {[%emt 0:02:07]} 10. a3 {[%emt 0:07:36]} c5 {[%emt 0:00:51]} 11. dxc5 {[%emt 0:00:45]} Bxc5 {[%emt 0:02:59]} 12. b4 {[%emt 0:00:22]} Be7 {[%emt 0:00:35]} 13. Bb2 {[%emt 0:00:32]} O-O {[%emt 0:00:35]} 14. Qd4 {[%emt 0:03:59]} Nb6 {[%emt 0:03:48]} 15. Qf4 {[%emt 0:01:56]} Nbd5 {[%emt 0:11:55]} 16. Nxd5 {[%emt 0:02:23]} Bxd5 {[%emt 0:11:26]} 17. Rfd1 {[%emt 0:00:53]} Qb8 {[%emt 0:01:56]} 18. Ne5 {[%emt 0:06:53]} Qb7 {[%emt 0:01:20]} 19. Qg3 {[%emt 0:05:29]} Ne4 {[%emt 0:06:24]} 20. Qh3 {[%emt 0:00:44]} f6 {[%emt 0:04:29]} 21. Nd3 {[%emt 0:02:49]} Ng5 {[%emt 0:05:49]} 22. Qg3 {[%emt 0:01:01]} Ne4 {[%emt 0:15:58]} 23. Qg4 {[%emt 0:03:26]} e5 {[%emt 0:02:38]} 24. f3 {[%emt 0:03:52]} Ng5 {[%emt 0:03:18]} 25. f4 {[%emt 0:06:05]} Be6 {[%emt 0:02:04]} 26. Qh4 {[%emt 0:01:42]} exf4 {[%emt 0:03:19]} 27. Nxf4 {[%emt 0:01:58]} Bb3 {[%emt 0:00:43]} 28. Re1 {[%emt 0:02:55]} Rac8 {[%emt 0:01:17]} 29. Bd3 {[%emt 0:00:43]} Bc2 {[%emt 0:00:53]} 30. Bf1 {[%emt 0:04:50]} Be4 31. Qg4 Bd6 {[%emt 0:08:12]} 32. h4 {[%emt 0:01:30]} h5 {[%emt 0:02:07]} 33. Nxh5 {[%emt 0:03:10]} Bf3 {[%emt 0:01:15]} 34. gxf3 {[%emt 0:00:33]} Nxf3+ {[%emt 0:00:05]} 35. Kf2 {[%emt 0:00:40]} Rc2+ {[%emt 0:01:31]} 36. Re2 {[%emt 0:00:19]} Nh2 {[%emt 0:00:32]} 37. Qg2 {[%emt 0:02:33]} Rxe2+ {[%emt 0:00:54]} 38. Bxe2 {[%emt 0:00:16]} Qf7 {[%emt 0:00:47]} 1-0